bitfinex/quotes_BTCUSD_20250831
["timestamp","ask_amount","ask_price","bid_price","bid_amount"]
[1756626633898,4.28316872,108910.0,108900.0,0.00812]
[1756626634093,4.61484486,108910.0,108900.0,0.00812]
[1756626636052,4.76812486,108910.0,108900.0,0.00812]
[1756626636678,4.7681268,108910.0,108900.0,0.00812]
[1756626637440,4.7701368,108910.0,108900.0,0.0051]
[1756626637872,4.77329742,108910.0,108900.0,0.0051]
[1756626638078,4.77013742,108910.0,108900.0,0.0051]
[1756626638950,4.75031996,108910.0,108900.0,0.0051]
[1756626639473,4.77015238,108910.0,108900.0,0.0051]
[1756626640095,4.61687238,108910.0,108900.0,0.0051]
[1756626640312,4.61041818,108910.0,108900.0,0.0051]
[1756626640460,4.61687592,108910.0,108900.0,0.0051]
[1756626641009,4.61687507,108910.0,108900.0,0.0051]
[1756626641156,4.61687466,108910.0,108900.0,0.0051]
[1756626643188,4.62003466,108910.0,108900.0,0.0051]
[1756626650977,4.61142802,108910.0,108900.0,0.0051]
[1756626651182,4.62004134,108910.0,108900.0,0.0051]
[1756626657015,4.62004134,108910.0,108900.0,0.003]
[1756626659209,4.61927771,108910.0,108900.0,0.003]
[1756626660612,4.61410771,108910.0,108900.0,0.00811]
[1756626660814,4.28243157,108910.0,108900.0,0.00811]
[1756626661035,0.90666871,108910.0,108900.0,0.00811]
[1756626661230,0.90667097,108910.0,108900.0,0.00811]
[1756626661784,0.90667098,108910.0,108900.0,0.00811]
[1756626662229,0.90666974,108910.0,108900.0,0.00811]
[1756626662804,0.90666974,108910.0,108900.0,0.16135]
[1756626665645,0.5769736,108910.0,108900.0,0.15821]
[1756626665873,0.90666974,108910.0,108900.0,0.16135]
[1756626667706,0.9002121,108910.0,108900.0,0.16135]
[1756626667904,0.93428062,108910.0,108900.0,0.16135]
[1756626669414,0.93626062,108910.0,108900.0,0.00497]
[1756626669632,0.93924062,108910.0,108900.0,0.15821]
[1756626671074,0.60756448,108910.0,108900.0,0.15821]
[1756626671251,0.9134109,108910.0,108900.0,0.15821]
[1756626671455,0.93922737,108910.0,108900.0,0.15821]
[1756626671903,0.93922728,108910.0,108900.0,0.15821]
[1756626672930,0.93922717,108910.0,108900.0,0.15821]
[1756626674605,0.93062177,108910.0,108900.0,0.15821]
[1756626674812,0.93922699,108910.0,108900.0,0.15821]
[1756626676734,0.59922699,108910.0,108900.0,0.00497]
[1756626676935,0.59922699,108910.0,108900.0,0.15817]
[1756626678255,0.59922699,108910.0,108900.0,0.00497]
[1756626678465,0.59922699,108910.0,108900.0,0.15817]
[1756626681366,0.59922699,108910.0,108900.0,0.1562]
[1756626681988,0.58201509,108910.0,108900.0,0.1562]
[1756626682195,0.59922458,108910.0,108900.0,0.1562]
[1756626686171,0.57161058,108910.0,108900.0,0.1562]
[1756626686566,0.57161058,108910.0,108900.0,0.183814]
[1756626687012,0.57161058,108910.0,108900.0,0.1562]
[1756626689515,0.57161179,108910.0,108900.0,0.1562]
[1756626692964,0.54579756,108910.0,108900.0,0.1562]
[1756626693113,0.57162662,108910.0,108900.0,0.1562]
[1756626693677,0.57162675,108910.0,108900.0,0.1562]
[1756626694505,0.57162675,108910.0,108900.0,0.15616]
[1756626696893,0.57162675,108910.0,108900.0,0.15819]
[1756626698001,0.5716271,108910.0,108900.0,0.15819]
[1756626698902,0.5716271,108910.0,108900.0,0.00503]
[1756626699125,0.5716271,108910.0,108900.0,0.15819]
[1756626699768,0.0322831,108910.0,108900.0,0.15819]
[1756626699950,0.36596924,108910.0,108900.0,0.1614]
[1756626700172,0.5496071,108910.0,108900.0,0.1614]
[1756626703831,0.54960726,108910.0,108900.0,0.1614]
[1756626709908,0.56944155,108910.0,108900.0,0.1614]
[1756626711745,0.56944155,108910.0,108900.0,0.189014]
[1756626713074,0.56944155,108910.0,108900.0,0.188974]
[1756626714294,0.56944155,108910.0,108900.0,0.032854]
[1756626714497,0.56944018,108910.0,108900.0,0.182764]
[1756626714659,0.56944018,108910.0,108900.0,0.181734]
[1756626714866,0.18367159,108890.0,108880.0,0.07104]
[1756626715063,0.53256474,108890.0,108880.0,0.32035001]
[1756626715286,0.53256474,108890.0,108880.0,0.16925001]
[1756626715504,0.53256474,108890.0,108880.0,0.34998401]
[1756626716057,0.53256474,108890.0,108880.0,0.35003167]
[1756626717709,0.53256474,108890.0,108880.0,0.35303167]
[1756626718777,0.2008886,108890.0,108880.0,0.53672013]
[1756626720724,0.01721701,108890.0,108880.0,0.58499904]
[1756626720937,0.2008886,108890.0,108880.0,0.91667518]
[1756626721629,0.2008886,108890.0,108880.0,0.58499904]
[1756626721787,0.2008886,108890.0,108880.0,0.91667518]
[1756626723004,0.2008886,108890.0,108880.0,0.58499904]
[1756626723209,0.2008886,108890.0,108880.0,0.91667518]
[1756626724049,0.18367159,108890.0,108880.0,0.91667518]
[1756626731888,0.49782105,108900.0,108880.0,0.91667518]
[1756626732082,0.52363218,108900.0,108890.0,0.09298001]
[1756626732288,0.52561218,108900.0,108890.0,0.09298001]
[1756626732497,0.52561218,108900.0,108890.0,0.12059401]
[1756626732947,0.52561218,108900.0,108890.0,0.12380401]
[1756626734496,0.52561218,108900.0,108890.0,0.12480401]
[1756626734700,0.52561293,108900.0,108890.0,0.12480401]
[1756626735043,0.52561293,108900.0,108890.0,0.12682401]
[1756626735239,0.52561313,108900.0,108890.0,0.12682401]
[1756626735446,0.50840501,108900.0,108890.0,0.12682401]
[1756626735645,0.52561313,108900.0,108890.0,0.12682401]
[1756626737934,0.52561313,108900.0,108890.0,0.27994401]
[1756626742201,0.53206732,108900.0,108890.0,0.27994401]
[1756626743644,0.53206732,108900.0,108890.0,0.12682401]
[1756626743798,0.53206732,108900.0,108890.0,0.27990401]
[1756626745425,0.53207546,108900.0,108890.0,0.27990401]
[1756626746311,0.53207593,108900.0,108890.0,0.27990401]
[1756626749430,0.20039979,108900.0,108890.0,0.27990401]
[1756626749650,0.53207593,108900.0,108890.0,0.27990401]
[1756626752443,0.51486257,108900.0,108890.0,0.27990401]
[1756626752645,0.53207904,108900.0,108890.0,0.27990401]
[1756626753831,0.53009904,108900.0,108890.0,0.27990401]
[1756626755137,0.53009904,108900.0,108890.0,0.4635756]
[1756626755343,0.53009904,108900.0,108890.0,0.27990401]
[1756626756054,0.52149253,108900.0,108890.0,0.27990401]
[1756626756206,0.53010217,108900.0,108890.0,0.27990401]
[1756626757014,0.53010234,108900.0,108890.0,0.27990401]
[1756626757939,0.53207234,108900.0,108890.0,0.12159401]
[1756626758112,0.53207234,108900.0,108890.0,0.27467401]
[1756626763616,0.53207234,108900.0,108890.0,0.27987401]
[1756626766423,0.86374848,108900.0,108890.0,0.27987401]
[1756626767077,0.86374767,108900.0,108890.0,0.27987401]
[1756626770634,0.86374761,108900.0,108890.0,0.27987401]
[1756626777510,0.85729152,108900.0,108890.0,0.27987401]
[1756626777709,0.86374771,108900.0,108890.0,0.27987401]
[1756626780194,0.20039543,108900.0,108890.0,0.27987401]
[1756626780405,0.86374771,108900.0,108890.0,0.27987401]
[1756626780618,0.20039543,108900.0,108890.0,0.27987401]
[1756626780821,0.86374771,108900.0,108890.0,0.27987401]
[1756626781899,0.86374771,108900.0,108890.0,0.4635456]
[1756626782330,0.03228052,108900.0,108890.0,0.53537777]
[1756626782465,0.6891767,108900.0,108890.0,0.53537777]
[1756626782661,0.02582442,108900.0,108890.0,0.53537777]
[1756626782945,0.34889242,108900.0,108890.0,0.53537777]
[1756626783080,0.34889346,108900.0,108890.0,0.53537777]
[1756626783486,0.33167614,108900.0,108890.0,0.53537777]
[1756626784291,0.18363786,108910.0,108900.0,0.18365472]
[1756626784463,0.54112391,108910.0,108900.0,0.18680472]
[1756626784664,0.54112391,108910.0,108900.0,0.18891472]
[1756626784925,0.54112391,108910.0,108900.0,0.21652672]
[1756626785983,0.54310391,108910.0,108900.0,0.21652672]
[1756626786182,0.54510391,108910.0,108900.0,0.21652672]
[1756626787186,0.54509316,108910.0,108900.0,0.21652672]
[1756626787396,0.53649354,108910.0,108900.0,0.21652672]
[1756626790254,0.53549682,108910.0,108900.0,0.21652672]
[1756626791080,0.53548917,108910.0,108900.0,0.21652672]
[1756626794465,0.53548557,108910.0,108900.0,0.21652672]
[1756626795718,0.35086443,108910.0,108900.0,0.30950673]
[1756626796121,0.35086443,108910.0,108900.0,0.30901125]
[1756626796376,0.35086443,108910.0,108900.0,0.37965125]
[1756626796521,0.33367614,108910.0,108900.0,0.37965125]
[1756626797366,0.33267614,108910.0,108900.0,0.37965125]
[1756626799090,0.33267614,108910.0,108900.0,0.38065125]
[1756626799290,0.33167614,108910.0,108900.0,0.38065125]
[1756626799910,0.33167614,108910.0,108900.0,0.38265125]
[1756626801215,0.52447819,108920.0,108910.0,0.18363786]
[1756626801444,0.88391591,108920.0,108910.0,0.33659786]
[1756626802306,0.88391591,108920.0,108910.0,0.36420786]
[1756626803386,0.88391591,108920.0,108910.0,0.36520786]
[1756626805669,0.88391591,108920.0,108910.0,0.36838786]
[1756626806105,0.88391591,108920.0,108910.0,0.36520786]
[1756626807158,0.88391591,108920.0,108910.0,0.21224786]
[1756626807365,0.88391591,108920.0,108910.0,0.36520786]
[1756626808326,0.89036528,108920.0,108910.0,0.36520786]
[1756626808685,0.88393241,108920.0,108910.0,0.36728786]
[1756626808889,0.89038193,108920.0,108910.0,0.37046786]
[1756626809300,0.89038498,108920.0,108910.0,0.37046786]
[1756626811665,0.2270327,108920.0,108910.0,0.37046786]
[1756626811862,0.89038498,108920.0,108910.0,0.37046786]
[1756626812329,0.2270327,108920.0,108910.0,0.37046786]
[1756626812539,0.89038498,108920.0,108910.0,0.37046786]
[1756626818668,0.89038498,108920.0,108910.0,0.36520786]
[1756626819329,0.89038498,108920.0,108910.0,0.36838786]
[1756626819531,0.89040585,108920.0,108910.0,0.37046786]
[1756626819701,0.89041455,108920.0,108910.0,0.02861]
[1756626819862,0.89041455,108920.0,108910.0,0.18153]
[1756626822962,0.89041455,108920.0,108910.0,0.18471]
[1756626824703,0.89041455,108920.0,108910.0,0.18153]
[1756626829788,0.89041579,108920.0,108910.0,0.18153]
[1756626830299,0.86459161,108920.0,108910.0,0.18153]
[1756626830498,0.89042089,108920.0,108910.0,0.18153]
[1756626840318,0.22706861,108920.0,108910.0,0.18149]
[1756626840518,0.89042089,108920.0,108910.0,0.18149]
[1756626840973,0.8904233,108920.0,108910.0,0.18149]
[1756626841293,0.89042361,108920.0,108910.0,0.18149]
[1756626842305,0.89042361,108920.0,108910.0,0.24770528]
[1756626842306,0.22707133,108920.0,108910.0,0.24770528]
[1756626842508,0.22707133,108920.0,108910.0,0.37028786]
[1756626842509,0.55676747,108920.0,108910.0,0.37028786]
[1756626842926,0.55676747,108920.0,108910.0,0.21740786]
[1756626843125,0.55676747,108920.0,108910.0,0.37028786]
[1756626844420,0.88844361,108920.0,108910.0,0.37028786]
[1756626850370,0.88844361,108920.0,108910.0,0.21740786]
[1756626850581,0.22707596,108920.0,108910.0,0.18665]
[1756626850786,0.89042824,108920.0,108910.0,0.18665]
[1756626854440,0.89042762,108920.0,108910.0,0.18665]
[1756626857487,0.89042762,108920.0,108910.0,0.37028786]
[1756626858818,0.89042762,108920.0,108910.0,0.18665]
[1756626859217,0.88843762,108920.0,108910.0,0.18665]
[1756626859970,0.89042762,108920.0,108910.0,0.18665]
[1756626861533,0.89042699,108920.0,108910.0,0.18665]
[1756626862485,0.89042699,108920.0,108910.0,0.03377]
[1756626862723,0.89042699,108920.0,108910.0,0.18661]
[1756626865369,0.22707471,108920.0,108910.0,0.18661]
[1756626865532,0.89042699,108920.0,108910.0,0.18661]
[1756626872128,0.89043073,108920.0,108910.0,0.03377]
[1756626872340,0.89043073,108920.0,108910.0,0.18661]
[1756626872515,0.89043073,108920.0,108910.0,0.18145]
[1756626872951,0.89043131,108920.0,108910.0,0.18145]
[1756626875409,0.89043131,108920.0,108910.0,0.18662]
[1756626875619,0.89043131,108920.0,108910.0,0.03378]
[1756626875814,0.89043264,108920.0,108910.0,0.18662]
[1756626878618,0.89043384,108920.0,108910.0,0.18662]
[1756626879934,0.22708156,108920.0,108910.0,0.18662]
[1756626880170,0.89043384,108920.0,108910.0,0.18662]
[1756626881585,0.22708156,108920.0,108910.0,0.18662]
[1756626881786,0.89043384,108920.0,108910.0,0.18662]
[1756626882813,0.8646022,108920.0,108910.0,0.18662]
[1756626882990,0.8904337,108920.0,108910.0,0.18662]
[1756626891934,0.8904337,108920.0,108910.0,0.03378]
[1756626892141,0.8904337,108920.0,108910.0,0.18658]
[1756626892788,0.8904337,108920.0,108910.0,0.03378]
[1756626893107,0.8904337,108920.0,108910.0,0.18658]
[1756626893618,0.8646022,108920.0,108910.0,0.18658]
[1756626893835,0.89043191,108920.0,108910.0,0.18658]
[1756626896071,0.89043191,108920.0,108910.0,0.37021786]
[1756626896750,0.89043191,108920.0,108910.0,0.18658]
[1756626897258,0.8904309,108920.0,108910.0,0.18658]
[1756626898330,0.8884409,108920.0,108910.0,0.37021786]
[1756626901374,0.69563885,108920.0,108910.0,0.37021786]
[1756626901582,0.87928841,108920.0,108910.0,0.37021786]
[1756626901789,0.88846946,108920.0,108910.0,0.37021786]
[1756626903256,0.88846724,108920.0,108910.0,0.37021786]
[1756626903780,0.88846715,108920.0,108910.0,0.37021786]
[1756626904195,0.89044715,108920.0,108910.0,0.37017786]
[1756626905979,0.22709487,108920.0,108910.0,0.37017786]
[1756626906114,0.89044715,108920.0,108910.0,0.37017786]
[1756626906320,0.89044715,108920.0,108910.0,0.18654]
[1756626906853,0.89044715,108920.0,108910.0,0.37017786]
[1756626907289,0.22709487,108920.0,108910.0,0.37017786]
[1756626907490,0.89044715,108920.0,108910.0,0.18654]
[1756626907832,0.89044715,108920.0,108910.0,0.18353]
[1756626908577,0.89044715,108920.0,108910.0,0.36716786]
[1756626908792,0.89044715,108920.0,108910.0,0.37031786]
[1756626909624,0.89044598,108920.0,108910.0,0.18668]
[1756626910479,0.89044554,108920.0,108910.0,0.18668]
[1756626912810,0.89044554,108920.0,108910.0,0.03392]
[1756626913049,0.89044554,108920.0,108910.0,0.18668]
[1756626913852,0.85816289,108920.0,108910.0,0.18668]
[1756626914067,0.89044485,108920.0,108910.0,0.18668]
[1756626914522,0.88398846,108920.0,108910.0,0.18668]
[1756626914872,0.89044477,108920.0,108910.0,0.18668]
[1756626915276,0.22063618,108920.0,108910.0,0.18668]
[1756626915516,0.89044477,108920.0,108910.0,0.18668]
[1756626915722,0.88398846,108920.0,108910.0,0.18668]
[1756626916128,0.89044477,108920.0,108910.0,0.18668]
[1756626916330,0.88398846,108920.0,108910.0,0.18668]
[1756626916866,0.89044477,108920.0,108910.0,0.18668]
[1756626920779,0.89044464,108920.0,108910.0,0.18668]
[1756626921861,0.22709236,108920.0,108910.0,0.18668]
[1756626922097,0.89044464,108920.0,108910.0,0.18668]
[1756626922311,0.22709236,108920.0,108910.0,0.18668]
[1756626922619,0.89044464,108920.0,108910.0,0.18668]
[1756626924979,0.89044493,108920.0,108910.0,0.18668]
[1756626925454,0.89044484,108920.0,108910.0,0.18668]
[1756626935613,0.85816289,108920.0,108910.0,0.18668]
[1756626935794,0.89043884,108920.0,108910.0,0.18668]
[1756626937233,0.89043884,108920.0,108910.0,0.18664]
[1756626939311,0.89043884,108920.0,108910.0,0.03392]
[1756626939567,0.89043884,108920.0,108910.0,0.18664]
[1756626945074,0.89043884,108920.0,108910.0,0.37027786]
[1756626946524,0.89042915,108920.0,108910.0,0.37027786]
[1756626947473,0.89042877,108920.0,108910.0,0.37027786]
[1756626948823,0.85816289,108920.0,108910.0,0.37027786]
[1756626949778,0.89042781,108920.0,108910.0,0.37027786]
[1756626958726,0.89042805,108920.0,108910.0,0.37027786]
[1756626959480,0.89042808,108920.0,108910.0,0.37027786]
[1756626961364,0.89042808,108920.0,108910.0,0.18664]
[1756626965752,0.89042808,108920.0,108910.0,0.18129]
[1756626966826,0.89042808,108920.0,108910.0,0.02861]
[1756626966964,0.89042808,108920.0,108910.0,0.18129]
[1756626968270,0.8904348,108920.0,108910.0,0.18129]
[1756626970393,0.89043466,108920.0,108910.0,0.18129]
[1756626971521,0.89043466,108920.0,108910.0,0.02861]
[1756626971740,0.89306466,108920.0,108910.0,0.15368]
[1756626971963,0.92067566,108920.0,108910.0,0.15368]
[1756626976446,0.92067273,108920.0,108910.0,0.15368]
[1756626978974,0.9034585,108920.0,108910.0,0.15368]
[1756626979197,0.92066241,108920.0,108910.0,0.15368]
[1756626979570,0.91803241,108920.0,108910.0,0.15368]
[1756626982630,0.91803184,108920.0,108910.0,0.15368]
[1756626984617,0.91803184,108920.0,108910.0,0.001]
[1756626984842,0.91803184,108920.0,108910.0,0.15364]
[1756626986302,0.91803111,108920.0,108910.0,0.15364]
[1756626989961,0.91803004,108920.0,108910.0,0.15364]
[1756626993432,0.9180302,108920.0,108910.0,0.15364]
[1756627000552,0.89222528,108920.0,108910.0,0.15364]
[1756627000723,0.91804155,108920.0,108910.0,0.15364]
[1756627001559,0.91804414,108920.0,108910.0,0.15364]
[1756627002943,0.91804414,108920.0,108910.0,0.15675]
[1756627003142,0.91804414,108920.0,108910.0,0.1588]
[1756627004505,0.91804452,108920.0,108910.0,0.1588]
[1756627005532,0.91606452,108920.0,108910.0,0.1588]
[1756627007469,0.91606571,108920.0,108910.0,0.1588]
[1756627009698,0.70481872,108920.0,108910.0,0.1588]
[1756627009898,0.55677857,108920.0,108910.0,0.1588]
[1756627010131,0.88845471,108920.0,108910.0,0.1588]
[1756627010626,0.88845471,108920.0,108910.0,0.186411]
[1756627011398,0.87124315,108920.0,108910.0,0.186411]
[1756627011606,0.88845489,108920.0,108910.0,0.186411]
[1756627012465,0.88845492,108920.0,108910.0,0.186411]
[1756627012938,0.88845492,108920.0,108910.0,0.033771]
[1756627013098,0.88845492,108920.0,108910.0,0.186371]
[1756627020547,0.89043492,108920.0,108910.0,0.186371]
[1756627021406,0.87537176,108920.0,108910.0,0.186371]
[1756627021582,0.89042951,108920.0,108910.0,0.186371]
[1756627024066,0.87242951,108920.0,108910.0,0.186371]
[1756627024251,0.89042951,108920.0,108910.0,0.186371]
[1756627031162,0.22707723,108920.0,108910.0,0.186371]
[1756627031480,0.89042951,108920.0,108910.0,0.186371]
[1756627031662,0.86676732,108920.0,108910.0,0.186371]
[1756627031862,0.89043649,108920.0,108910.0,0.186371]
[1756627033377,0.89043649,108920.0,108910.0,0.033771]
[1756627033542,0.89043649,108920.0,108910.0,0.186331]
[1756627035531,0.89043851,108920.0,108910.0,0.186331]
[1756627042429,0.85816289,108920.0,108910.0,0.186331]
[1756627042626,0.89045164,108920.0,108910.0,0.186331]
[1756627043696,0.89045201,108920.0,108910.0,0.186331]
[1756627049212,0.89045201,108920.0,108910.0,0.033771]
[1756627049411,0.89045201,108920.0,108910.0,0.186331]
[1756627053453,0.89045372,108920.0,108910.0,0.186331]
[1756627053857,0.87323305,108920.0,108910.0,0.186331]
[1756627054014,0.89045609,108920.0,108910.0,0.184952]
[1756627064137,0.88184457,108920.0,108910.0,0.184952]
[1756627064356,0.8904561,108920.0,108910.0,0.184952]
[1756627064934,0.89045609,108920.0,108910.0,0.184952]
[1756627075015,0.85816289,108920.0,108910.0,0.184952]
[1756627075219,0.89045711,108920.0,108910.0,0.184952]
[1756627081159,0.88847711,108920.0,108910.0,0.36858986]
[1756627083025,0.89045711,108920.0,108910.0,0.36858986]
[1756627083236,0.89045711,108920.0,108910.0,0.184952]
[1756627084233,0.89045711,108920.0,108910.0,0.184872]
[1756627084647,0.87323295,108920.0,108910.0,0.184872]
[1756627084833,0.89045496,108920.0,108910.0,0.184872]
[1756627085680,0.89045489,108920.0,108910.0,0.184872]
[1756627091776,0.89045489,108920.0,108910.0,0.032392]
[1756627091918,0.89045489,108920.0,108910.0,0.184872]
[1756627092326,0.22710261,108920.0,108910.0,0.184872]
[1756627092537,0.89045489,108920.0,108910.0,0.184872]
[1756627095577,0.8904535,108920.0,108910.0,0.184872]
[1756627103782,0.22710122,108920.0,108910.0,0.184872]
[1756627103956,0.8904535,108920.0,108910.0,0.184872]
[1756627105695,0.22710122,108920.0,108910.0,0.184872]
[1756627105862,0.8904535,108920.0,108910.0,0.184872]
[1756627106273,0.86462101,108920.0,108910.0,0.184872]
[1756627106473,0.8904552,108920.0,108910.0,0.184872]
[1756627107350,0.89045538,108920.0,108910.0,0.184872]
[1756627107779,0.2271031,108920.0,108910.0,0.184872]
[1756627107992,0.89045538,108920.0,108910.0,0.184872]
[1756627116005,0.2271031,108920.0,108910.0,0.184872]
[1756627116243,0.89045538,108920.0,108910.0,0.184872]
[1756627117080,0.88184484,108920.0,108910.0,0.184872]
[1756627117276,0.89045658,108920.0,108910.0,0.184872]
[1756627117675,0.8904566,108920.0,108910.0,0.184872]
[1756627117885,0.22710432,108920.0,108910.0,0.184872]
[1756627118086,0.8904566,108920.0,108910.0,0.184872]
[1756627120143,0.8904566,108920.0,108910.0,0.18388853]
[1756627124444,0.89045667,108920.0,108910.0,0.18388853]
[1756627125145,0.89045667,108920.0,108910.0,0.18384853]
[1756627125733,0.68710137,108920.0,108910.0,0.18384853]
[1756627125973,0.87075093,108920.0,108910.0,0.18384853]
[1756627126164,0.87075094,108920.0,108910.0,0.18384853]
[1756627126853,0.87993199,108920.0,108910.0,0.18384853]
[1756627128211,0.87340648,108920.0,108910.0,0.18384853]
[1756627129005,0.87340647,108920.0,108910.0,0.18384853]
[1756627129821,0.87065216,108920.0,108910.0,0.18384853]
[1756627132938,0.87065216,108920.0,108910.0,0.36748639]
[1756627136494,0.87340647,108920.0,108910.0,0.36748639]
[1756627137089,0.87440647,108920.0,108910.0,0.36748639]
[1756627137934,0.88301836,108920.0,108910.0,0.36748639]
[1756627138664,0.88301836,108920.0,108910.0,0.18384853]
[1756627138880,0.85718289,108920.0,108910.0,0.18384853]
[1756627139240,0.88301856,108920.0,108910.0,0.18384853]
[1756627139449,0.88301856,108920.0,108910.0,0.03140853]
[1756627139652,0.88301856,108920.0,108910.0,0.02935853]
[1756627139859,0.88301856,108920.0,108910.0,0.18179853]
[1756627140816,0.88301856,108920.0,108910.0,0.18388853]
[1756627145499,0.21966628,108920.0,108910.0,0.18388853]
[1756627145690,0.88301856,108920.0,108910.0,0.18388853]
[1756627145922,0.21866628,108920.0,108910.0,0.36752639]
[1756627146114,0.55034242,108920.0,108910.0,0.36752639]
[1756627148677,0.55034098,108920.0,108910.0,0.36752639]
[1756627150161,0.88201712,108920.0,108910.0,0.36752639]
[1756627150996,0.21866484,108920.0,108910.0,0.36752639]
[1756627151194,0.88201712,108920.0,108910.0,0.36752639]
[1756627159544,0.88201586,108920.0,108910.0,0.36752639]
[1756627161023,0.88396586,108920.0,108910.0,0.027611]
[1756627161231,0.88396586,108920.0,108910.0,0.180011]
[1756627166491,0.88396578,108920.0,108910.0,0.180011]
[1756627167238,0.88396578,108920.0,108910.0,0.027611]
[1756627167448,0.88396578,108920.0,108910.0,0.180011]
[1756627170349,0.88396592,108920.0,108910.0,0.180011]
[1756627170936,0.8839659,108920.0,108910.0,0.180011]
[1756627172575,0.8839659,108920.0,108910.0,0.183121]
[1756627180010,0.88396519,108920.0,108910.0,0.183121]
[1756627181238,0.88396382,108920.0,108910.0,0.183121]
[1756627181821,0.88396385,108920.0,108910.0,0.183121]
[1756627182036,0.8839638,108920.0,108910.0,0.183121]
[1756627186239,0.8839638,108920.0,108910.0,0.18174194]
[1756627187185,0.8839638,108920.0,108910.0,0.18376194]
[1756627191984,0.86674319,108920.0,108910.0,0.18376194]
[1756627192244,0.88396838,108920.0,108910.0,0.18376194]
[1756627193473,0.88396838,108920.0,108910.0,0.02934194]
[1756627193719,0.88396838,108920.0,108910.0,0.17859194]
[1756627195636,0.88396825,108920.0,108910.0,0.17859194]
[1756627196278,0.88396825,108920.0,108910.0,0.18163194]
[1756627197026,0.88396825,108920.0,108910.0,0.18366194]
[1756627199973,0.88396825,108920.0,108910.0,0.02623194]
[1756627200186,0.19478061,108920.0,108910.0,0.17859194]
[1756627200385,0.91232738,108920.0,108910.0,0.17859194]
[1756627201057,0.94462088,108920.0,108910.0,0.17859194]
[1756627202152,0.92954773,108920.0,108910.0,0.17859194]
[1756627202347,0.94461551,108920.0,108910.0,0.17859194]
[1756627202702,0.94461382,108920.0,108910.0,0.17859194]
[1756627207369,0.94461382,108920.0,108910.0,0.18366194]
[1756627211550,0.94461382,108920.0,108910.0,0.03130194]
[1756627211760,0.94461382,108920.0,108910.0,0.17859194]
[1756627212797,0.94460443,108920.0,108910.0,0.17859194]
[1756627213440,0.93982157,108920.0,108910.0,0.17859194]
[1756627213615,0.88562708,108920.0,108910.0,0.17859194]
[1756627213860,0.88562708,108920.0,108910.0,0.18163194]
[1756627216184,0.88562708,108920.0,108910.0,0.02927194]
[1756627216386,0.88562708,108920.0,108910.0,0.17859194]
[1756627217086,0.67367922,108920.0,108910.0,0.18163194]
[1756627217309,0.85743878,108920.0,108910.0,0.18163194]
[1756627218056,0.86661983,108920.0,108910.0,0.18163194]
[1756627219258,0.86661983,108920.0,108910.0,0.18366194]
[1756627222758,0.94572431,108920.0,108910.0,0.18366194]
[1756627222964,0.86661983,108920.0,108910.0,0.18366194]
[1756627223517,0.85801332,108920.0,108910.0,0.18366194]
[1756627223716,0.86662114,108920.0,108910.0,0.18366194]
[1756627224543,0.86662173,108920.0,108910.0,0.18366194]
[1756627229274,0.88646067,108920.0,108910.0,0.18366194]
[1756627229656,0.88635067,108920.0,108910.0,0.18366194]
[1756627233198,0.88646067,108920.0,108910.0,0.18366194]
[1756627234449,0.86278928,108920.0,108910.0,0.18366194]
[1756627234602,0.88646927,108920.0,108910.0,0.18366194]
[1756627235010,0.88001176,108920.0,108910.0,0.18366194]
[1756627235224,0.88646927,108920.0,108910.0,0.18366194]
[1756627241519,0.88647788,108920.0,108910.0,0.18366194]
[1756627241718,0.86925785,108920.0,108910.0,0.18366194]
[1756627241923,0.8864951,108920.0,108910.0,0.18366194]
[1756627245231,0.88003759,108920.0,108910.0,0.18366194]
[1756627245430,0.88650204,108920.0,108910.0,0.18366194]
[1756627249090,0.88650202,108920.0,108910.0,0.18366194]
[1756627250626,0.86666308,108920.0,108910.0,0.18366194]
[1756627251239,0.86666297,108920.0,108910.0,0.18366194]
[1756627252810,0.2252608,108920.0,108910.0,0.18366194]
[1756627253028,0.2251508,108920.0,108910.0,0.18366194]
[1756627253229,0.88850308,108920.0,108910.0,0.18228585]
[1756627256170,0.85618289,108920.0,108910.0,0.18228585]
[1756627256390,0.88850288,108920.0,108910.0,0.18228585]
[1756627256813,0.88850287,108920.0,108910.0,0.18228585]
[1756627259852,0.88850281,108920.0,108910.0,0.18228585]
[1756627265849,0.88851057,108920.0,108910.0,0.18228585]
[1756627276556,0.8820462,108920.0,108910.0,0.18228585]
[1756627276717,0.88851203,108920.0,108910.0,0.18228585]
[1756627277452,0.8885121,108920.0,108910.0,0.36592371]
[1756627277655,0.8885121,108920.0,108910.0,0.18228585]
[1756627280287,0.88851042,108920.0,108910.0,0.18228585]
[1756627282934,0.22515814,108920.0,108910.0,0.18228585]
[1756627283134,0.88851042,108920.0,108910.0,0.18228585]
[1756627286421,0.88851042,108920.0,108910.0,0.45890372]
[1756627287293,0.87125965,108920.0,108910.0,0.45890372]
[1756627287490,0.88849024,108920.0,108910.0,0.45890372]
[1756627288340,0.88848997,108920.0,108910.0,0.45890372]
[1756627289714,0.22513769,108920.0,108910.0,0.45890372]
[1756627289899,0.88848997,108920.0,108910.0,0.45890372]
[1756627294651,0.88848721,108920.0,108910.0,0.45890372]
[1756627298193,0.8884873,108920.0,108910.0,0.45890372]
[1756627298401,0.8884875,108920.0,108910.0,0.45890372]
[1756627300226,0.88848843,108920.0,108910.0,0.45890372]
[1756627305112,0.03230554,108920.0,108910.0,0.45890372]
[1756627305327,0.87927882,108920.0,108910.0,0.45890372]
[1756627305679,0.54760268,108920.0,108910.0,0.45890372]
[1756627307633,0.36398168,108920.0,108910.0,0.45890372]
[1756627308544,0.33167614,108920.0,108910.0,0.45890372]
[1756627308891,0.51529714,108920.0,108910.0,0.45890372]
[1756627309514,0.19278434,108930.0,108910.0,0.45890372]
[1756627309719,0.19278434,108930.0,108920.0,0.00298]
[1756627309930,0.52457048,108930.0,108920.0,0.00298]
[1756627310137,0.52457048,108930.0,108920.0,0.030588]
[1756627310413,0.52457048,108930.0,108920.0,0.214209]
[1756627310631,0.52457048,108930.0,108920.0,0.030588]
[1756627310991,0.52504682,108930.0,108920.0,0.030588]
[1756627311365,0.52604682,108930.0,108920.0,0.030588]
[1756627311764,0.52504682,108930.0,108920.0,0.030588]
[1756627312063,0.52704682,108930.0,108920.0,0.030588]
[1756627312973,0.52704682,108930.0,108920.0,0.216249]
[1756627313559,0.52704682,108930.0,108920.0,0.366249]
[1756627313762,0.52704682,108930.0,108920.0,0.216249]
[1756627313763,0.19526068,108930.0,108920.0,0.216249]
[1756627313969,0.33415248,108930.0,108920.0,0.30922901]
[1756627315360,0.33415248,108930.0,108920.0,0.30785446]
[1756627315562,0.33415248,108930.0,108920.0,0.46013446]
[1756627317595,0.51775662,108930.0,108920.0,0.46013446]
[1756627319995,0.33415248,108930.0,108920.0,0.46013446]
[1756627322937,0.00247634,108930.0,108920.0,0.46013446]